bitfinex/quotes_ETHUSD_20260305
["timestamp","ask_amount","ask_price","bid_price","bid_amount"]
[1772674098760,1.63374664,2128.8,2128.4,0.0011]
[1772674098966,0.001,2128.9,2128.4,0.49322269]
[1772674099555,0.001,2128.9,2128.5,1.17453605]
[1772674099767,0.001,2128.9,2128.4,1.17564662]
[1772674101870,1.17531537,2128.9,2128.4,1.17564662]
[1772674102894,1.17531537,2128.9,2128.4,1.66776931]
[1772674103683,1.17531537,2128.9,2128.6,0.0011]
[1772674103884,0.47768804,2129.1,2128.6,0.0011]
[1772674104192,1.17413027,2129.3,2128.6,0.49322269]
[1772674104780,1.65181831,2129.3,2128.6,0.49322269]
[1772674105902,0.47768804,2129.0,2128.6,0.0011]
[1772674108802,0.49558669,2128.8,2128.6,0.0011]
[1772674110594,1.17431537,2128.9,2128.6,0.0011]
[1772674110784,0.49558669,2129.0,2128.6,0.0011]
[1772674113275,1.17431537,2128.9,2128.6,0.0011]
[1772674113499,1.66989048,2129.0,2128.6,0.0011]
[1772674114483,0.49558669,2128.9,2128.6,0.0011]
[1772674114888,0.49558669,2128.7,2128.4,0.0011]
[1772674115273,2.80648965,2128.6,2128.4,0.0011]
[1772674115477,1.17425097,2129.1,2128.6,0.0011]
[1772674115671,0.001,2128.8,2128.6,0.0011]
[1772674117816,0.49558669,2129.4,2128.6,0.49251208]
[1772674117981,2.80887945,2129.3,2128.6,0.49251208]
[1772674118390,2.80787945,2129.3,2128.6,0.49251208]
[1772674119540,2.80787945,2129.3,2128.7,1.1744257]
[1772674120211,1.66963896,2129.4,2128.7,1.1744257]
[1772674120382,0.001,2129.3,2128.7,1.1744257]
[1772674120582,0.001,2129.3,2128.8,0.49141208]
[1772674121508,0.001,2129.3,2128.9,1.17431537]
[1772674121980,0.001,2129.3,2128.8,1.66573814]
[1772674122303,0.001,2129.2,2128.8,1.66573814]
[1772674122683,4.69594693,2129.5,2128.9,0.49141208]
[1772674123004,0.49558669,2129.6,2128.9,0.49141208]
[1772674123315,0.001,2129.4,2128.9,0.49141208]
[1772674123475,0.49558669,2129.5,2128.9,0.49141208]
[1772674123682,1.67062632,2129.4,2128.7,4.69761334]
[1772674123912,1.67062632,2129.4,2128.7,6.34602542]
[1772674124298,0.49558669,2129.3,2128.7,1.1744257]
[1772674125284,0.49558669,2129.3,2128.7,1.66583778]
[1772674127314,1.6696911,2129.3,2128.8,0.0011]
[1772674127613,0.49758669,2129.2,2128.8,0.0011]
[1772674129315,1.17420506,2129.1,2128.8,0.0011]
[1772674129907,1.17520506,2129.1,2128.8,0.0011]
[1772674130081,0.001,2129.1,2128.8,0.47751856]
[1772674130715,0.001,2129.2,2128.8,0.47751856]
[1772674130913,0.002,2129.2,2128.8,0.47751856]
[1772674131421,0.002,2129.2,2128.9,1.17431537]
[1772674131623,0.001,2129.2,2128.9,1.65073393]
[1772674133420,0.002,2129.2,2128.8,1.17546747]
[1772674133620,0.001,2129.1,2128.8,0.0011]
[1772674136826,0.4758473,2129.1,2128.8,0.0011]
[1772674138629,1.64910751,2129.0,2128.6,0.0011]
[1772674139511,1.17523942,2129.1,2128.6,0.0011]
[1772674140302,1.65008672,2129.1,2128.6,0.0011]
[1772674140630,0.4748473,2128.8,2128.6,0.0011]
[1772674140836,1.17431537,2128.9,2128.4,0.0011]
[1772674140837,2.80647534,2128.7,2128.4,0.0011]
[1772674141035,0.4748473,2128.6,2128.4,0.0011]
[1772674142231,0.4748473,2128.6,2128.2,0.0011]
[1772674142401,0.4748473,2128.6,2128.1,0.0011]
[1772674142604,1.17453605,2128.5,2128.0,0.0022]
[1772674142833,0.4748473,2128.4,2128.0,0.0022]
[1772674145035,1.17464643,2128.3,2128.0,0.0022]
[1772674147327,0.4748473,2128.3,2128.0,0.0022]
[1772674148235,0.4748473,2128.3,2127.9,0.0011]
[1772674148407,0.4748473,2128.1,2127.2,0.0011]
[1772674148603,0.4748473,2128.1,2127.4,0.0011]
[1772674149912,0.4748473,2127.9,2127.4,0.0011]
[1772674152641,1.64976975,2127.8,2127.4,0.0011]
[1772674153138,0.4748473,2127.7,2127.6,0.0011]
[1772674153636,1.64975503,2127.9,2127.6,0.0011]
[1772674153838,1.64975503,2127.9,2127.6,0.0022]
[1772674154214,1.64975503,2127.9,2127.4,0.0011]
[1772674154215,0.4748473,2127.8,2127.4,0.0011]
[1772674154414,0.4748473,2127.8,2127.4,0.0022]
[1772674154839,1.64982497,2127.7,2127.4,0.0022]
[1772674155044,0.4748473,2127.6,2127.4,0.0022]
[1772674156841,0.4748473,2127.4,2127.2,0.0011]
[1772674157018,0.4748473,2127.4,2127.1,0.0011]
[1772674159221,0.45443917,2127.2,2127.1,0.0011]
[1772674161223,1.62969302,2127.2,2127.1,0.0011]
[1772674161428,1.17525385,2127.2,2127.1,0.0022]
[1772674162047,1.17525385,2127.2,2127.1,0.0011]
[1772674163840,0.45443917,2127.2,2127.1,0.0011]
[1772674164041,0.45443917,2127.2,2127.0,0.0011]
[1772674164227,0.45443917,2127.2,2127.0,0.0034]
[1772674164568,0.45443917,2127.2,2127.0,0.0011]
[1772674166227,1.62974827,2127.1,2127.0,0.0011]
[1772674166546,1.1753091,2127.1,2127.0,0.0023]
[1772674167647,4.70001197,2127.7,2127.0,0.47664522]
[1772674168035,5.15442436,2127.7,2127.0,0.47664522]
[1772674168212,1.62939006,2127.7,2127.1,1.1753091]
[1772674168415,1.62939006,2127.7,2127.0,1.65196735]
[1772674169839,1.17497767,2127.7,2127.1,0.47674522]
[1772674170240,0.45441239,2127.6,2127.1,0.0012]
[1772674171320,0.45441239,2127.6,2127.0,0.0011]
[1772674171544,1.17499093,2127.7,2126.7,0.0011]
[1772674171545,0.45441239,2127.4,2126.7,0.0011]
[1772674171748,0.45441239,2127.3,2126.7,0.0011]
[1772674173223,1.62966624,2127.2,2126.7,0.0011]
[1772674173425,1.17525385,2127.2,2126.7,0.47664522]
[1772674174554,0.45441239,2127.6,2126.7,0.47664522]
[1772674174756,2.79251254,2127.5,2126.7,0.47664522]
[1772674175355,1.17514336,2127.4,2126.9,0.47554522]
[1772674177143,1.62955575,2127.4,2126.7,1.6521389]
[1772674177340,1.62955575,2127.4,2126.9,0.0011]
[1772674177766,0.001,2127.2,2126.9,0.0011]
[1772674178838,0.45541239,2127.2,2126.9,0.0011]
[1772674180371,1.1753091,2127.1,2126.9,0.0011]
[1772674182145,1.62972149,2127.1,2126.9,0.0011]
[1772674183673,2.23347386,2127.7,2127.0,0.47554522]
[1772674183876,2.80067912,2127.6,2127.0,0.47554522]
[1772674184060,1.17497476,2127.8,2127.0,0.47554522]
[1772674184269,2.80082396,2127.7,2127.0,0.47554522]
[1772674185251,3.97584225,2127.7,2127.2,0.47554522]
[1772674185451,1.17494904,2127.8,2127.2,0.47554522]
[1772674185745,2.46781027,2128.1,2127.2,0.47554522]
[1772674186064,2.80291291,2128.0,2127.2,0.47554522]
[1772674187342,3.97773357,2128.0,2127.3,1.1751986]
[1772674187567,1.17482066,2128.0,2127.4,0.47554522]
[1772674189766,0.001,2127.8,2127.4,1.65064848]
[1772674190371,0.001,2127.8,2127.5,0.46826917]
[1772674192472,0.49646308,2127.8,2127.0,1.64361164]
[1772674192649,0.49646308,2127.8,2126.9,1.17649384]
[1772674193587,0.49646308,2127.8,2126.9,1.64476301]
[1772674193953,0.49546308,2127.6,2126.9,1.64476301]
[1772674194352,1.175964,2127.8,2127.0,0.46826917]
[1772674194858,0.001,2127.8,2127.0,0.46826917]
[1772674195056,1.17592398,2127.8,2127.0,0.46826917]
[1772674196475,1.17592398,2127.8,2127.1,1.1753091]
[1772674196679,1.67015777,2128.3,2127.3,0.46826917]
[1772674196887,0.49546308,2128.2,2127.3,0.46826917]
[1772674197583,0.49546308,2128.2,2127.5,0.46826917]
[1772674198450,1.6702199,2128.1,2127.5,0.46826917]
[1772674198671,0.49546308,2128.0,2127.3,0.46826917]
[1772674200383,0.49546308,2128.0,2127.1,0.46826917]
[1772674200582,1.67018494,2128.2,2127.3,0.46826917]
[1772674200881,1.67018494,2128.2,2127.1,0.46826917]
[1772674200882,0.49546308,2128.1,2127.1,0.46826917]
[1772674201380,0.49546308,2128.1,2127.4,0.0011]
[1772674201755,0.49546308,2127.9,2127.4,0.0011]
[1772674203188,0.49546308,2127.9,2126.9,0.0011]
[1772674203189,0.49546308,2127.6,2126.9,0.0011]
[1772674203485,0.49546308,2127.4,2126.4,0.0011]
[1772674203696,0.49546308,2126.9,2126.4,0.0011]
[1772674203862,0.49546308,2127.2,2126.5,0.20731003]
[1772674204053,0.49546308,2127.4,2126.5,0.20731003]
[1772674204256,0.49546308,2127.2,2126.5,0.20731003]
[1772674205360,1.1753091,2127.1,2126.5,1.38289601]
[1772674205559,1.17522502,2127.3,2126.6,0.20731003]
[1772674206085,1.17513249,2127.5,2126.6,0.20731003]
[1772674206462,1.670531,2127.6,2126.6,0.20731003]
[1772674206869,0.49546308,2127.5,2126.6,0.20731003]
[1772674207586,0.49546308,2127.8,2126.8,0.20731003]
[1772674207798,2.80181776,2127.7,2126.8,0.20731003]
[1772674208103,3.29728084,2127.7,2126.8,0.20731003]
[1772674208392,2.80181776,2127.6,2126.8,0.20731003]
[1772674209389,1.67128058,2128.0,2127.0,0.20731003]
[1772674209556,1.67128058,2128.0,2127.2,0.20731003]
[1772674210178,0.49646308,2128.0,2127.2,0.20731003]
[1772674210405,0.001,2128.4,2127.2,0.20631003]
[1772674210611,1.17559466,2128.4,2127.2,0.20631003]
[1772674211105,0.001,2128.4,2127.2,0.20631003]
[1772674211596,1.6710557,2128.4,2127.3,1.1751986]
[1772674211764,1.6710557,2128.4,2127.4,0.20631003]
[1772674212870,0.49546308,2128.3,2127.4,0.20631003]
[1772674213415,0.49546308,2128.3,2127.3,1.1751986]
[1772674213732,0.49546308,2128.3,2127.1,6.05610446]
[1772674213733,0.49546308,2128.1,2127.1,1.149]
[1772674214026,0.001,2127.8,2127.2,0.20631003]
[1772674216220,0.001,2127.8,2127.3,1.1751986]
[1772674216434,0.001,2127.8,2127.3,2.3241986]
[1772674216787,0.001,2127.8,2127.3,2.53050863]
[1772674217227,0.49646308,2127.8,2127.3,1.1751986]
[1772674217396,0.001,2127.8,2127.2,1.38151875]
[1772674217894,0.001,2127.8,2127.2,1.17520872]
[1772674218100,0.001,2127.8,2126.9,1.17537469]
[1772674218101,0.49646308,2127.8,2126.9,1.17537469]
[1772674218297,1.17497767,2127.7,2126.8,4.70284397]
[1772674218498,0.49546308,2127.6,2126.8,0.0011]
[1772674219016,0.49546308,2127.6,2126.5,1.17670363]
[1772674219017,0.48042919,2127.4,2126.5,0.0011]
[1772674219204,2.79887621,2127.3,2126.5,1.17673477]
[1772674219403,0.48042919,2127.5,2126.5,1.3841448]
[1772674220200,0.48042919,2127.5,2126.6,0.20741003]
[1772674220615,1.17509325,2127.5,2126.7,1.38294019]
[1772674221202,0.48042919,2127.4,2126.7,1.17553016]
[1772674222712,0.48042919,2127.4,2126.5,1.17669882]
[1772674222713,0.48042919,2127.2,2126.5,1.17669882]
[1772674223601,0.48042919,2127.2,2126.5,1.17673397]
[1772674225224,1.1753091,2127.1,2126.5,0.0011]
[1772674225423,0.48042919,2127.1,2126.5,0.0011]
[1772674225625,0.48042919,2127.1,2126.7,0.0011]
[1772674225992,0.48042919,2127.1,2126.5,0.0011]
[1772674227226,1.64330948,2127.0,2126.5,0.0011]
[1772674228521,1.17529063,2127.2,2126.5,0.0011]
[1772674229806,0.46794512,2127.3,2126.5,1.17674072]
[1772674229999,1.296,2127.5,2126.6,0.20851003]
[1772674230526,0.46894512,2127.6,2126.7,0.20851003]
[1772674231003,0.001,2127.6,2126.7,0.20851003]
[1772674231927,0.001,2127.6,2126.9,0.20851003]
[1772674232105,0.001,2127.8,2126.9,0.20751003]
[1772674232797,0.001,2128.4,2126.9,0.20751003]
[1772674233831,0.46794512,2128.3,2127.1,0.20751003]
[1772674234127,0.46794512,2128.2,2127.2,1.38276388]
[1772674234334,0.46794512,2128.2,2127.2,1.15]
[1772674234518,0.46794512,2128.2,2127.0,1.17532359]
[1772674234831,1.17466113,2128.3,2127.0,1.17532359]
[1772674234832,0.46794512,2128.0,2127.0,1.17532359]
[1772674235132,0.46794512,2127.8,2126.6,1.17553016]
[1772674235331,0.46794512,2127.8,2126.6,4.70225701]
[1772674235542,0.46794512,2127.8,2126.5,1.1511]
[1772674235716,4.76588444,2127.9,2126.5,2.32671225]
[1772674235717,0.46794512,2127.6,2126.5,2.32671225]
[1772674236030,0.46794512,2127.5,2126.5,2.32671225]
[1772674236231,0.46794512,2127.5,2126.5,0.0011]
[1772674236822,0.46794512,2127.5,2126.5,1.17673915]
[1772674237337,0.46794512,2127.5,2126.7,0.0011]
[1772674238107,0.46794512,2127.3,2126.7,0.0011]
[1772674239519,0.46794512,2127.3,2126.5,0.0011]
[1772674240418,0.46794512,2127.1,2126.5,0.0011]
[1772674241523,0.46794512,2127.4,2126.5,0.0011]
[1772674241729,1.64309406,2127.4,2126.5,0.0011]
[1772674242609,0.46794512,2127.3,2126.5,0.0011]
[1772674244118,0.46894512,2127.6,2126.5,0.20971003]
[1772674244837,1.64398339,2127.6,2126.6,1.38419547]
[1772674245335,0.46794512,2127.5,2126.6,1.38419547]
[1772674245535,0.46794512,2127.5,2126.6,2.32358544]
[1772674246239,0.46794512,2127.5,2126.6,1.17558544]
[1772674246832,0.46794512,2127.3,2126.5,4.70344176]
[1772674249045,0.49241403,2127.1,2126.7,0.0011]
[1772674249829,1.17608279,2127.6,2126.7,0.20971003]
[1772674250034,1.66849682,2127.6,2126.7,0.20971003]
[1772674250538,0.49341403,2127.6,2126.7,0.20971003]
[1772674250841,0.001,2127.6,2126.7,0.20971003]
[1772674251045,0.49241403,2128.2,2126.9,0.20761003]
[1772674251216,0.49241403,2128.2,2127.1,0.20761003]
[1772674252155,0.001,2128.4,2127.1,0.20761003]
[1772674252456,0.49241403,2128.3,2127.2,1.35461003]
[1772674252617,0.49241403,2128.3,2127.2,1.147]
[1772674252816,0.49241403,2128.3,2127.3,0.20761003]
[1772674253042,1.66706203,2128.3,2127.4,1.17514336]
[1772674255052,0.49241403,2128.0,2127.3,1.1751986]
[1772674255352,0.49241403,2128.0,2127.2,2.32221137]
[1772674257361,1.66728127,2127.9,2127.2,2.32221137]
[1772674258546,0.49241403,2127.8,2127.2,1.147]
[1772674258732,0.49241403,2127.7,2126.8,1.17547489]
[1772674259050,0.49241403,2127.7,2126.7,1.17658876]
[1772674259443,0.49241403,2127.5,2126.7,1.17658876]
[1772674259638,1.17502059,2127.7,2126.7,1.38419879]
[1772674259838,7.77147523,2127.8,2126.8,0.20761003]
[1772674259839,0.49241403,2127.8,2126.8,0.20761003]
[1772674260442,0.49241403,2128.1,2126.8,0.20761003]
[1772674260736,0.001,2127.6,2126.9,1.146]
[1772674261552,0.001,2127.6,2127.0,1.38297439]
[1772674262840,0.001,2127.6,2127.0,1.17536436]
[1772674263155,0.49341403,2127.6,2126.8,4.70180857]
[1772674263964,1.17508813,2127.5,2126.8,4.70180857]
[1772674264171,1.17508813,2127.5,2126.7,2.32257489]
[1772674264172,0.49241403,2127.4,2126.7,2.32258486]
[1772674268359,0.49241403,2127.4,2126.5,0.0011]
[1772674268360,0.49241403,2127.2,2126.5,0.0011]
[1772674268735,0.49241403,2127.2,2126.5,1.17673562]
[1772674270334,1.1753091,2127.1,2126.5,0.0011]
[1772674271939,1.66772313,2127.1,2126.5,0.0011]
[1772674272251,1.66772313,2127.1,2126.7,0.0011]
[1772674273162,0.49241403,2127.0,2126.7,0.0011]
[1772674274367,1.667806,2127.0,2126.7,0.0011]
[1772674276642,0.49241403,2126.9,2126.5,0.0011]
[1772674277058,0.49241403,2126.9,2126.1,0.0023]
[1772674277376,0.49241403,2126.7,2126.0,1.17589327]
[1772674277566,0.49241403,2126.7,2126.1,0.0023]
[1772674278544,0.49241403,2126.7,2126.2,0.0023]
[1772674278545,0.45226825,2126.5,2126.2,0.0023]
[1772674278845,0.45226825,2126.5,2126.1,0.0023]
[1772674280159,0.45226825,2126.5,2126.0,1e-08]
[1772674280464,0.45226825,2126.5,2126.0,0.00230001]
[1772674281448,0.45226825,2126.3,2126.0,0.00230001]
[1772674281752,0.45226825,2126.3,2125.9,0.0011]
[1772674283673,0.45226825,2126.1,2125.8,0.0011]
[1772674283878,0.45226825,2126.0,2125.8,0.0011]
[1772674284177,0.45226825,2126.0,2125.1,1.17750975]
[1772674284349,1.74226825,2126.0,2125.1,1.17750975]
[1772674284549,0.45226825,2125.9,2125.1,0.0011]
[1772674284955,0.45226825,2125.8,2125.7,0.0011]
[1772674285163,0.45226825,2125.8,2125.1,0.0011]
[1772674285576,0.45226825,2125.6,2125.1,0.0011]
[1772674286547,1.17608317,2125.7,2125.1,0.0011]
[1772674287759,5.18273212,2125.8,2125.1,0.0011]
[1772674288579,0.47839943,2125.7,2125.1,0.0011]
[1772674288880,0.47839943,2125.7,2124.6,1.17664723]
[1772674289597,0.47839943,2125.7,2124.7,0.21321003]
[1772674290075,1.1761385,2125.6,2124.7,0.21321003]
[1772674290280,1.65453793,2125.6,2124.8,1.38979135]
[1772674291978,1.17611154,2125.7,2124.9,0.21321003]
[1772674292160,4.70421713,2125.8,2125.0,1.38968061]
[1772674292477,0.47839943,2125.7,2124.9,1.17649318]
[1772674294683,1.1761385,2125.6,2124.8,4.919415]
[1772674296880,1.1761385,2125.6,2125.0,0.0011]
[1772674297272,1.1771385,2125.6,2125.0,0.0011]
[1772674297480,0.47839943,2125.5,2125.0,0.0011]
[1772674297694,0.47839943,2125.5,2124.8,0.0011]
[1772674298350,0.001,2125.6,2124.9,0.21431003]
[1772674298601,0.47939943,2125.6,2124.8,0.0011]
[1772674298954,0.47839943,2125.3,2124.8,0.0011]
[1772674299763,3.24591431,2125.4,2124.5,0.0011]
[1772674299764,0.47839943,2125.1,2124.5,0.0011]
[1772674299956,0.47839943,2124.9,2124.5,0.0022]
[1772674300155,1.17624917,2125.4,2124.5,1.39324367]
[1772674300156,0.47839943,2125.3,2124.5,1.39324367]
[1772674300551,0.47839943,2125.3,2124.5,0.21651003]
[1772674300756,0.47839943,2125.3,2124.5,0.0022]
[1772674300956,0.47839943,2125.1,2124.5,0.0022]
[1772674301856,1.17635987,2125.2,2124.5,0.21651003]
[1772674302079,1.17635987,2125.2,2124.5,0.0022]
[1772674302080,0.47839943,2125.1,2124.5,0.0022]
[1772674302579,1.17635987,2125.2,2124.5,0.0022]
[1772674302580,1.17627991,2125.4,2124.5,0.21541003]
[1772674302780,1.17627991,2125.4,2124.6,0.21541003]
[1772674302982,1.77439943,2125.6,2124.8,0.21431003]
[1772674303189,0.001,2125.6,2124.8,0.21431003]
[1772674303364,1.65422194,2126.2,2124.9,0.21431003]
[1772674303569,0.47839943,2126.2,2124.9,0.21431003]
[1772674303768,2.47079412,2126.3,2124.9,0.21431003]
[1772674303769,1.17579412,2126.3,2124.9,0.21431003]
[1772674303978,1.17572856,2126.4,2124.9,0.21431003]
[1772674304458,0.47839943,2126.3,2124.9,0.21431003]
[1772674305186,1.1758066,2126.2,2125.1,0.21431003]
[1772674306458,1.65420603,2126.2,2125.1,0.21431003]
[1772674307235,1.65420603,2126.2,2125.2,1.3906699]
[1772674307361,1.65408921,2126.5,2125.3,0.21431003]
[1772674307776,0.47839943,2126.4,2125.3,0.21431003]
[1772674308798,1.65605701,2126.7,2125.3,0.21431003]
[1772674309155,1.65605701,2126.7,2125.4,1.17624917]
[1772674309487,0.001,2126.0,2125.5,0.21431003]
[1772674309663,1.176538,2126.7,2125.5,0.21331003]
[1772674310177,0.001,2126.7,2125.7,0.21331003]
[1772674310378,1.17653487,2126.7,2125.7,0.21331003]
[1772674310585,1.65602112,2126.7,2125.7,0.21331003]
[1772674310890,0.47948625,2126.6,2125.4,2.5265592]
[1772674311090,0.47948625,2126.4,2125.4,2.31324917]
[1772674311294,0.47948625,2126.2,2125.2,0.0011]
[1772674311498,0.47948625,2126.0,2125.2,0.0011]
[1772674311859,0.47948625,2125.8,2125.2,0.0011]
[1772674312067,1.295,2126.2,2125.2,0.21441003]
[1772674312378,2.77989485,2126.1,2125.2,0.21441003]
[1772674313367,1.17591721,2126.0,2125.2,1.3907678]
[1772674313696,1.17591721,2126.0,2125.2,0.21441003]
[1772674313863,1.17591721,2126.0,2125.2,1.39074749]
[1772674314260,1.17591721,2126.0,2125.2,0.0011]
[1772674314992,0.47948625,2125.9,2125.2,0.0011]
[1772674315163,0.47948625,2125.9,2125.2,1.17744636]
[1772674315359,1.17602784,2125.8,2125.2,0.0011]
[1772674315564,1.1758066,2126.2,2125.2,0.21441003]
[1772674315767,2.779953,2126.1,2125.2,0.21441003]
[1772674317596,1.17591721,2126.0,2125.3,1.17630452]
[1772674318488,2.2119237,2126.6,2125.4,0.21331003]
[1772674318689,4.70265676,2126.5,2125.4,0.21331003]
[1772674318905,2.7810839,2126.4,2125.4,0.21331003]
[1772674319725,1.1757513,2126.3,2125.5,1.17619383]
[1772674320014,1.17558544,2126.6,2125.6,0.21331003]
[1772674320467,5.99812109,2126.7,2125.6,0.21331003]
[1772674320468,1.17657516,2126.7,2125.6,0.21331003]
[1772674320666,0.001,2126.7,2125.6,0.21331003]
[1772674320969,0.001,2126.7,2125.5,1.17619383]
[1772674320970,1.17522921,2127.3,2125.7,0.21231003]
[1772674321194,3.26193061,2127.2,2125.7,0.21231003]
[1772674321371,0.47948625,2127.2,2125.9,0.21231003]
[1772674321707,1.1753091,2127.1,2126.0,1.17591721]
[1772674322006,0.001,2126.3,2126.2,0.21231003]
[1772674322401,1.65478522,2127.2,2126.2,0.21231003]
[1772674322792,0.47948625,2127.0,2126.0,1.17591721]
[1772674323502,1.17529897,2127.2,2126.0,1.38822724]
[1772674323704,2.77854326,2127.1,2126.1,0.21231003]
[1772674324004,1.17536436,2127.0,2126.2,1.1758066]
[1772674324206,4.70114407,2127.2,2126.3,0.21231003]
[1772674325806,0.001,2127.4,2126.4,1.17569601]
[1772674326027,0.001,2127.4,2126.4,1.38800604]
[1772674326825,0.48048625,2127.4,2126.2,4.97272641]
[1772674327132,0.48048625,2127.4,2126.3,0.21231003]
[1772674327430,0.001,2127.4,2126.3,0.21231003]
[1772674327630,1.17603557,2127.6,2126.3,0.21131003]
[1772674327801,0.001,2127.6,2126.4,1.17569601]
[1772674328006,0.001,2127.6,2126.5,0.21131003]
[1772674328826,1.17474199,2128.2,2126.6,0.21131003]
[1772674329917,0.001,2128.4,2126.8,0.21131003]
[1772674330111,0.001,2128.4,2127.0,0.21131003]
[1772674330313,0.47948625,2128.1,2126.7,1.38684019]
[1772674330710,0.47948625,2128.1,2126.8,0.21131003]
[1772674331711,0.48048625,2128.4,2126.8,0.21131003]
[1772674331927,1.17464643,2128.3,2127.0,0.21131003]
[1772674332648,0.48048625,2128.4,2127.0,0.21131003]
[1772674332821,1.17559179,2128.4,2127.0,0.21131003]
[1772674333219,0.001,2128.4,2127.0,0.21131003]
[1772674333420,1.17560944,2128.4,2127.0,0.21131003]
[1772674333932,0.48048625,2128.4,2127.1,1.38661913]
[1772674334436,0.001,2128.0,2127.1,1.38661913]
[1772674334633,0.48048625,2128.0,2126.7,0.21131003]
[1772674335213,0.47948625,2127.8,2126.6,2.31058544]
[1772674335409,0.47948625,2127.8,2126.6,1.135]
[1772674336133,1.65446392,2127.7,2126.7,1.17553016]
[1772674337931,1.65446392,2127.7,2126.7,1.38684019]
[1772674339739,1.65446392,2127.7,2126.8,0.21131003]
[1772674340342,1.65446392,2127.7,2126.9,1.17541962]
[1772674340740,1.65446392,2127.7,2126.8,0.21131003]
[1772674340943,1.65446392,2127.7,2126.8,1.38677974]
[1772674341313,1.17497767,2127.7,2126.8,1.38677974]
[1772674342530,1.17497767,2127.7,2126.9,0.21131003]
[1772674344943,0.45849666,2127.7,2126.7,4.70201025]
[1772674346368,4.6999107,2127.8,2126.8,0.21131003]
[1772674346725,4.6999107,2127.8,2127.0,0.21131003]
[1772674347068,0.001,2127.5,2127.1,1.1753091]
[1772674347360,0.001,2127.5,2126.9,1.1764792]
[1772674348447,0.001,2127.5,2126.9,0.0011]
[1772674348648,0.49873383,2127.4,2126.9,0.0011]
[1772674348945,0.49873383,2127.2,2126.6,0.0011]
[1772674349146,0.49873383,2127.2,2126.4,0.0011]
[1772674349520,0.49873383,2127.0,2126.4,0.0011]
[1772674350622,0.49873383,2127.0,2126.1,0.0011]
[1772674350623,0.49873383,2126.8,2126.1,0.0011]
[1772674350828,0.49873383,2126.6,2126.1,0.0011]
[1772674351039,1.1757513,2126.3,2126.1,0.0011]
[1772674351435,0.49873383,2126.2,2125.9,0.0011]
[1772674351641,0.49873383,2126.2,2125.4,0.0011]
[1772674351642,0.49873383,2126.0,2125.4,0.0011]
[1772674351850,0.49873383,2126.0,2125.4,0.00330001]
[1772674353929,1.17597252,2125.9,2125.4,0.00330001]
[1772674354433,1.67470635,2125.9,2125.4,0.00330001]
[1772674355123,1.17597252,2125.9,2125.5,0.00220001]
[1772674355827,6.49297861,2126.2,2125.5,0.00220001]
[1772674355828,4.70389011,2126.1,2125.5,0.00220001]
[1772674356140,4.70389011,2126.1,2125.6,0.00220001]
[1772674356353,4.70389011,2126.1,2125.5,0.00220001]
[1772674357022,5.20262394,2126.1,2125.5,0.00220001]
[1772674357419,0.49873383,2126.0,2125.4,0.0011]
[1772674357651,0.49873383,2125.5,2125.0,0.0011]
[1772674357819,0.49873383,2125.3,2125.0,0.0011]
[1772674358153,1.17635987,2125.2,2125.0,0.0011]
[1772674359427,1.17635987,2125.2,2125.1,0.0011]
[1772674359952,1.17632483,2125.3,2125.1,0.0011]
[1772674360119,1.17632483,2125.3,2124.7,0.0011]
[1772674360120,0.49873383,2125.2,2124.7,0.0011]
[1772674361754,1.17626345,2125.4,2124.7,0.0011]
[1772674362125,0.49873383,2125.3,2124.7,0.0011]
[1772674362830,0.49873383,2125.1,2124.5,0.0011]
[1772674363054,0.49873383,2125.0,2124.5,0.0011]
[1772674363936,1.17658132,2124.8,2124.5,0.0011]
[1772674367537,6.00069074,2125.1,2124.5,0.0011]
[1772674367538,4.70596807,2125.0,2124.5,0.0011]
[1772674367944,5.2047019,2125.0,2124.5,0.0011]
[1772674368565,0.45156199,2124.9,2124.5,0.0011]
[1772674369649,4.70596807,2125.0,2124.5,0.0011]
[1772674370263,0.45156199,2124.9,2124.5,0.0011]
[1772674370680,1.17658132,2124.8,2124.5,0.0011]
[1772674370851,1.17658132,2124.8,2124.7,0.0011]
[1772674371449,1.17658132,2124.8,2124.5,0.0011]
[1772674371450,1.62814331,2124.8,2124.5,0.0011]
[1772674371775,1.62814331,2124.8,2124.2,0.0011]
[1772674371776,0.45156199,2124.6,2124.2,0.0011]
[1772674372780,1.17674746,2124.5,2124.2,0.0011]
[1772674373152,1.17672368,2124.6,2124.2,0.0011]
[1772674375283,0.45156199,2124.5,2124.2,0.0011]
[1772674375982,1.17672368,2124.6,2124.2,0.0011]
[1772674376158,1.17667893,2124.7,2124.2,0.0011]
[1772674376362,4.70642202,2124.8,2124.2,0.0011]
[1772674376363,1.17661429,2124.8,2124.2,0.0011]
[1772674377555,0.45156199,2124.7,2124.2,0.0011]
[1772674379286,1.17669208,2124.6,2124.2,0.0011]
[1772674380180,1.62822253,2124.7,2124.2,0.0011]
[1772674380384,1.17662239,2124.8,2124.2,0.0011]
[1772674381380,2.47755361,2124.9,2124.3,0.21681004]
[1772674381584,0.45156199,2124.8,2124.2,0.0011]
[1772674381886,0.45156199,2124.7,2124.2,0.0011]
[1772674382869,1.17655361,2124.9,2124.2,0.0011]
[1772674383071,4.08422566,2124.8,2124.4,0.0011]
[1772674383387,0.001,2124.6,2124.4,0.0011]
[1772674383569,0.45156199,2125.0,2124.4,0.0011]
[1772674383570,3.96041556,2124.9,2124.4,0.0011]
[1772674383768,1.17654932,2124.9,2124.4,0.0011]
[1772674384557,3.23715594,2124.8,2124.4,0.0011]
[1772674384761,0.45156199,2124.8,2124.4,0.0011]
[1772674385265,1.17654932,2124.9,2124.4,0.0011]
[1772674385467,2.78769993,2124.8,2124.4,0.0011]
[1772674385791,4.70596922,2125.0,2124.4,0.0011]
[1772674385964,3.23927652,2124.9,2124.4,0.0011]
[1772674386161,2.78771453,2124.8,2124.4,0.0011]
[1772674387095,2.78771453,2124.8,2124.4,0.21691004]
[1772674387266,1.17647058,2125.0,2124.4,0.21691004]
[1772674387467,1.17658132,2124.8,2124.4,0.0011]
[1772674387784,2.794356,2124.7,2124.4,0.0011]
[1772674388369,2.794356,2124.7,2124.4,1.17789585]
[1772674388563,1.17656935,2124.9,2124.4,1.17789585]
[1772674388888,2.79486639,2124.8,2124.4,0.0011]
[1772674389401,1.1766367,2124.7,2124.4,0.0011]
[1772674390160,1.1766367,2124.7,2124.1,3.66898745]
[1772674390494,1.17662327,2124.8,2124.1,3.88328133]
[1772674390666,2.79562328,2124.7,2124.2,0.21429388]
[1772674391365,2.79562328,2124.7,2124.3,1.17685825]
[1772674391711,1.1764762,2125.0,2124.4,0.21429388]
[1772674393462,1.6764762,2125.0,2124.3,1.17685825]